fUSD/lending_fUSD_20251123
["ID","MTS","AMOUNT","RATE_DAILY","PERIOD"]
[394757833,1763929865243,-1000.0,0.00038998,3]
[394757834,1763929865252,-1000.0,0.00038999,3]
[394757835,1763929865262,-1000.0,0.00038999,3]
[394757836,1763929865271,-300.0,0.00039037,2]
[394757837,1763929865280,-500.0,0.00039053,120]
[394757838,1763929865289,-479.01,0.00039096,2]
[394757839,1763929865299,-479.01,0.00039096,2]
[394757840,1763929865308,-479.01,0.00039096,2]
[394757841,1763929865317,-479.01,0.00039096,2]
[394757842,1763929865327,-479.01,0.00039096,2]
[394757843,1763929865335,-479.01,0.00039096,2]
[394757844,1763929865345,-479.01,0.00039096,2]
[394757845,1763929865354,-479.01,0.00039096,2]
[394757846,1763929865364,-479.01,0.00039096,2]
[394757847,1763929865374,-701.46,0.00039096,2]
[394757848,1763929865384,-1000.0,0.00039125,3]
[394757849,1763929865394,-392.42851608,0.00039137,2]
[394757850,1763929865404,-169.71,0.00039151,2]
[394757851,1763929865413,-169.71,0.00039151,2]
[394757852,1763929865423,-169.71,0.00039151,2]
[394757853,1763929865434,-169.71,0.00039151,2]
[394757854,1763929865446,-169.71,0.00039151,2]
[394757855,1763929865456,-168.51,0.00039151,2]
[394757856,1763929865466,-2597.0126525,0.00039168,2]
[394757857,1763929865477,-35095.1146471,0.00039168,2]
[394757858,1763929865487,-12636.9529985,0.00039168,2]
[394757859,1763929865496,-151.0,0.00039168,120]
[394757860,1763929865506,-261.133702,0.00039168,120]
[394757861,1763929865514,-1000.0,0.00039168,3]
[394757862,1763929865525,-1000.0,0.00039168,3]
[394757863,1763929865535,-1000.0,0.00039172,3]
[394757864,1763929865544,-150.0,0.00039173,5]
[394757865,1763929865553,-296.9,0.00039176,7]
[394757866,1763929865562,-1000.0,0.00039176,3]
[394757867,1763929865571,-1000.0,0.00039176,3]
[394757868,1763929865581,-204.03692801,0.00039177,30]
[394757869,1763929865590,-150.0,0.00039177,30]
[394757870,1763929865599,-200.62726993,0.00039177,30]
[394757871,1763929865608,-150.0,0.00039177,30]
[394757872,1763929865618,-1000.0,0.00039177,8]
[394757873,1763929865631,-200.0,0.00039177,8]
[394757874,1763929865640,-500.0,0.00039177,8]
[394757875,1763929865649,-914.5231766,0.00039177,8]
[394757876,1763929865658,-200.0,0.00039177,8]
[394757877,1763929865667,-250.0,0.00039177,8]
[394757878,1763929865676,-250.0,0.00039177,8]
[394757879,1763929865687,-500.0,0.00039177,8]
[394757880,1763929865697,-250.0,0.00039177,8]
[394757881,1763929865707,-500.0,0.00039177,8]
[394757882,1763929865717,-250.0,0.00039177,8]
[394757883,1763929865727,-500.0,0.00039177,8]
[394757884,1763929865736,-500.0,0.00039177,8]
[394757885,1763929865745,-250.0,0.00039177,8]
[394757886,1763929865755,-500.0,0.00039177,8]
[394757887,1763929865764,-500.0,0.00039177,8]
[394757888,1763929865774,-250.0,0.00039177,8]
[394757889,1763929865784,-500.0,0.00039177,8]
[394757890,1763929865793,-500.0,0.00039177,8]
[394757891,1763929865802,-250.0,0.00039177,8]
[394757892,1763929865811,-500.0,0.00039177,8]
[394757893,1763929865820,-500.0,0.00039177,8]
[394757894,1763929865830,-500.0,0.00039177,8]
[394757895,1763929865839,-250.0,0.00039177,8]
[394757896,1763929865848,-500.0,0.00039177,8]
[394757897,1763929865858,-500.0,0.00039177,8]
[394757898,1763929865867,-500.0,0.00039177,8]
[394757899,1763929865876,-250.0,0.00039177,8]
[394757900,1763929865886,-500.0,0.00039177,8]
[394757901,1763929865895,-500.0,0.00039177,8]
[394757902,1763929865905,-500.0,0.00039177,8]
[394757903,1763929865915,-250.0,0.00039177,8]
[394757904,1763929865924,-500.0,0.00039177,8]
[394757905,1763929865933,-500.0,0.00039177,8]
[394757906,1763929865944,-500.0,0.00039177,8]
[394757907,1763929865953,-250.0,0.00039177,8]
[394757908,1763929865963,-500.0,0.00039177,8]
[394757909,1763929865972,-500.0,0.00039177,8]
[394757910,1763929865982,-500.0,0.00039177,8]
[394757911,1763929865992,-500.0,0.00039177,8]
[394757912,1763929866002,-500.0,0.00039177,8]
[394757913,1763929866011,-500.0,0.00039177,8]
[394757914,1763929866020,-500.0,0.00039177,8]
[394757915,1763929866030,-500.0,0.00039177,8]
[394757916,1763929866039,-500.0,0.00039177,8]
[394757917,1763929866048,-500.0,0.00039177,8]
[394757918,1763929866057,-500.0,0.00039177,8]
[394757919,1763929866067,-500.0,0.00039177,8]
[394757920,1763929866076,-250.0,0.00039177,8]
[394757921,1763929866085,-250.0,0.00039177,8]
[394757922,1763929866095,-164.68603605,0.00039177,8]
[394757923,1763929866104,-500.0,0.00039177,8]
[394757924,1763929866113,-500.0,0.00039177,8]
[394757925,1763929866122,-500.0,0.00039177,8]
[394757926,1763929866131,-500.0,0.00039177,8]
[394757927,1763929866139,-620.0,0.00039177,8]
[394757928,1763929866149,-500.0,0.00039177,8]
[394757929,1763929866158,-642.94,0.00039177,8]
[394757930,1763929866167,-261.14571214,0.00039177,8]
[394757931,1763929866176,-500.0,0.00039177,8]
[394757932,1763929866187,-500.0,0.00039177,8]
[394757933,1763929866196,-500.0,0.00039177,8]
[394757934,1763929866205,-500.0,0.00039177,8]
[394757935,1763929866214,-500.0,0.00039177,8]
[394757936,1763929866223,-500.0,0.00039177,8]
[394757937,1763929866232,-500.0,0.00039177,8]
[394757938,1763929866241,-500.0,0.00039177,8]
[394757939,1763929866250,-500.0,0.00039177,8]
[394757940,1763929866259,-500.0,0.00039177,8]
[394757941,1763929866268,-221.295596,0.00039177,8]
[394757942,1763929866278,-150.0,0.00039177,2]
[394757943,1763929866289,-150.0,0.00039177,2]
[394757944,1763929866299,-200.0,0.00039177,8]
[394757945,1763929866308,-200.0,0.00039177,8]
[394757946,1763929866317,-500.0,0.00039177,2]
[394757947,1763929866326,-500.0,0.00039177,2]
[394757948,1763929866336,-150.0,0.00039177,2]
[394757949,1763929866345,-258.13891343,0.00039177,2]
[394757950,1763929866354,-418.0,0.00039177,2]
[394757951,1763929866363,-1000.0,0.00039177,2]
[394757952,1763929866372,-1000.0,0.00039177,3]
[394757953,1763929866381,-1000.0,0.00039177,3]
[394757954,1763929866391,-1000.0,0.00039177,3]
[394757955,1763929866401,-500.0,0.00039178,8]
[394757956,1763929866410,-547.44,0.00039178,8]
[394757957,1763929866419,-500.0,0.00039178,8]
[394757958,1763929866428,-290.20118829,0.00039178,8]
[394757959,1763929866438,-537.05,0.00039178,8]
[394757960,1763929866447,-468.88690812,0.00039178,8]
[394757961,1763929866456,-500.0,0.00039178,8]
[394757962,1763929866465,-500.0,0.00039178,8]
[394757963,1763929866474,-700.0,0.00039178,120]
[394757964,1763929866484,-500.0,0.00039178,8]
[394757965,1763929866493,-500.0,0.00039178,8]
[394757966,1763929866502,-500.0,0.00039178,8]
[394757967,1763929866511,-500.0,0.00039178,8]
[394757968,1763929866520,-549.85749229,0.00039178,8]
[394757969,1763929866529,-500.0,0.00039178,8]
[394757970,1763929866538,-500.0,0.00039178,8]
[394757971,1763929866547,-500.0,0.00039178,8]
[394757972,1763929866556,-500.0,0.00039178,8]
[394757973,1763929866565,-500.0,0.00039178,8]
[394757974,1763929866574,-500.0,0.00039178,8]
[394757975,1763929866584,-500.0,0.00039178,8]
[394757976,1763929866593,-764.13,0.00039178,8]
[394757977,1763929866602,-500.0,0.00039178,8]
[394757978,1763929866611,-500.0,0.00039178,8]
[394757979,1763929866623,-620.69,0.00039178,8]
[394757980,1763929866632,-500.0,0.00039178,8]
[394757981,1763929866641,-500.0,0.00039178,8]
[394757982,1763929866651,-500.0,0.00039178,8]
[394757983,1763929866660,-500.0,0.00039178,8]
[394757984,1763929866671,-500.0,0.00039178,8]
[394757985,1763929866680,-500.0,0.00039178,8]
[394757986,1763929866691,-500.0,0.00039178,8]
[394757987,1763929866701,-500.0,0.00039178,8]
[394757988,1763929866711,-500.0,0.00039178,8]
[394757989,1763929866720,-500.0,0.00039178,8]
[394757990,1763929866731,-500.0,0.00039178,8]
[394757991,1763929866739,-500.0,0.00039178,8]
[394757992,1763929866748,-500.0,0.00039178,8]
[394757993,1763929866758,-599.62894973,0.00039178,8]
[394757994,1763929866767,-500.0,0.00039178,8]
[394757995,1763929866776,-500.0,0.00039178,8]
[394757996,1763929866785,-500.0,0.00039178,8]
[394757997,1763929866795,-500.0,0.00039178,8]
[394757998,1763929866804,-502.57,0.00039178,8]
[394757999,1763929866813,-734.1,0.00039178,8]
[394758000,1763929866823,-500.0,0.00039178,8]
[394758001,1763929866832,-500.0,0.00039178,8]
[394758002,1763929866841,-500.0,0.00039178,8]
[394758003,1763929866850,-500.0,0.00039178,8]
[394758004,1763929866860,-500.0,0.00039178,8]
[394758005,1763929866869,-655.26,0.00039178,8]
[394758006,1763929866879,-532.47,0.00039178,8]
[394758007,1763929866888,-500.0,0.00039178,8]
[394758008,1763929866898,-500.0,0.00039178,8]
[394758009,1763929866908,-500.0,0.00039178,8]
[394758010,1763929866917,-500.0,0.00039178,8]
[394758011,1763929866927,-500.0,0.00039178,8]
[394758012,1763929866936,-222.12894329,0.00039178,8]
[394758013,1763929866947,-500.0,0.00039178,8]
[394758014,1763929866956,-500.0,0.00039178,8]
[394758015,1763929866967,-500.0,0.00039178,8]
[394758016,1763929866977,-500.0,0.00039178,8]
[394758017,1763929866987,-500.0,0.00039178,8]
[394758018,1763929866997,-518.25,0.00039178,8]
[394758019,1763929867006,-1000.0,0.00039178,8]
[394758020,1763929867016,-500.0,0.00039178,8]
[394758021,1763929867026,-500.0,0.00039178,8]
[394758022,1763929867036,-1022.99,0.00039178,8]
[394758023,1763929867046,-500.0,0.00039178,8]
[394758024,1763929867056,-500.0,0.00039178,8]
[394758025,1763929867065,-903.62,0.00039178,8]
[394758026,1763929867074,-500.0,0.00039178,8]
[394758027,1763929867083,-500.0,0.00039178,8]
[394758028,1763929867092,-500.0,0.00039178,8]
[394758029,1763929867102,-500.0,0.00039178,8]
[394758030,1763929867111,-500.0,0.00039178,8]
[394758031,1763929867120,-506.26,0.00039178,8]
[394758032,1763929867130,-560.5,0.00039178,8]
[394758033,1763929867139,-580.95,0.00039178,8]
[394758034,1763929867149,-500.0,0.00039178,8]
[394758035,1763929867158,-500.0,0.00039178,8]
[394758036,1763929867167,-500.0,0.00039178,8]
[394758037,1763929867176,-397.59613184,0.00039178,8]
[394758038,1763929867186,-151.0,0.00039178,30]
[394758039,1763929867198,-500.0,0.00039178,8]
[394758040,1763929867207,-500.0,0.00039178,8]
[394758041,1763929867216,-500.0,0.00039178,8]
[394758042,1763929867225,-516.8,0.00039178,8]
[394758043,1763929867234,-500.0,0.00039178,8]
[394758044,1763929867244,-500.0,0.00039178,8]
[394758045,1763929867252,-500.0,0.00039178,8]
[394758046,1763929867262,-500.0,0.00039178,8]
[394758047,1763929867271,-500.0,0.00039178,8]
[394758048,1763929867282,-500.0,0.00039178,8]
[394758049,1763929867291,-500.0,0.00039178,8]
[394758050,1763929867300,-500.0,0.00039178,8]
[394758051,1763929867311,-500.0,0.00039178,8]
[394758052,1763929867320,-500.0,0.00039178,8]
[394758053,1763929867330,-500.0,0.00039178,8]
[394758054,1763929867339,-500.0,0.00039178,8]
[394758055,1763929867350,-500.0,0.00039178,8]
[394758056,1763929867359,-500.0,0.00039178,8]
[394758057,1763929867368,-529.7,0.00039178,8]
[394758058,1763929867377,-525.99,0.00039178,8]
[394758059,1763929867387,-500.0,0.00039178,8]
[394758060,1763929867396,-592.88,0.00039178,8]
[394758061,1763929867405,-539.32,0.00039178,8]
[394758062,1763929867414,-809.29,0.00039178,8]
[394758063,1763929867424,-500.0,0.00039178,8]
[394758064,1763929867435,-500.0,0.00039178,8]
[394758065,1763929867445,-568.18,0.00039178,8]
[394758066,1763929867455,-635.38976023,0.00039178,8]
[394758067,1763929867464,-500.0,0.00039178,8]
[394758068,1763929867473,-500.0,0.00039178,8]
[394758069,1763929867483,-501.27,0.00039178,8]
[394758070,1763929867492,-500.0,0.00039178,8]
[394758071,1763929867501,-500.0,0.00039178,8]
[394758072,1763929867511,-204.48,0.00039178,30]
[394758073,1763929867520,-500.0,0.00039178,8]
[394758074,1763929867529,-500.0,0.00039178,8]
[394758075,1763929867539,-500.0,0.00039178,8]
[394758076,1763929867548,-500.0,0.00039178,8]
[394758077,1763929867557,-500.0,0.00039178,8]
[394758078,1763929867566,-500.0,0.00039178,8]
[394758079,1763929867576,-500.0,0.00039178,8]
[394758080,1763929867586,-549.96,0.00039178,8]
[394758081,1763929867595,-500.0,0.00039178,8]
[394758082,1763929867604,-500.0,0.00039178,8]
[394758083,1763929867614,-500.0,0.00039178,8]
[394758084,1763929867626,-500.0,0.00039178,8]
[394758085,1763929867636,-500.0,0.00039178,8]
[394758086,1763929867647,-500.0,0.00039178,8]
[394758087,1763929867658,-500.0,0.00039178,8]
[394758088,1763929867667,-639.91,0.00039178,8]
[394758089,1763929867678,-500.0,0.00039178,8]
[394758090,1763929867687,-584.27,0.00039178,8]
[394758091,1763929867697,-500.0,0.00039178,8]
[394758092,1763929867706,-702.21,0.00039178,8]
[394758093,1763929867715,-500.0,0.00039178,8]
[394758094,1763929867724,-500.0,0.00039178,8]
[394758095,1763929867734,-500.0,0.00039178,8]
[394758096,1763929867743,-592.73,0.00039178,8]
[394758097,1763929867752,-500.0,0.00039178,8]
[394758098,1763929867761,-500.0,0.00039178,8]
[394758099,1763929867770,-500.0,0.00039178,8]
[394758100,1763929867780,-500.0,0.00039178,8]
[394758101,1763929867789,-151.0,0.00039178,120]
[394758102,1763929867799,-360.66609665,0.00039178,8]
[394758103,1763929867808,-673.92,0.00039178,8]
[394758104,1763929867818,-253.27,0.00039178,8]
[394758105,1763929867827,-158.17746146,0.00039178,8]
[394758106,1763929867836,-500.0,0.00039178,8]
[394758107,1763929867845,-500.0,0.00039178,8]
[394758108,1763929867855,-500.0,0.00039178,8]
[394758109,1763929867864,-581.88229115,0.00039178,8]
[394758110,1763929867874,-500.0,0.00039178,8]
[394758111,1763929867884,-500.0,0.00039178,8]
[394758112,1763929867894,-500.0,0.00039178,8]
[394758113,1763929867905,-500.0,0.00039178,8]
[394758114,1763929867914,-709.69,0.00039178,8]
[394758115,1763929867924,-500.0,0.00039178,8]
[394758116,1763929867934,-500.0,0.00039178,8]
[394758117,1763929867944,-793.62,0.00039178,8]
[394758118,1763929867953,-500.0,0.00039178,8]
[394758119,1763929867963,-484.42169362,0.00039178,8]
[394758120,1763929867973,-500.0,0.00039178,8]
[394758121,1763929867982,-500.0,0.00039178,8]
[394758122,1763929867991,-500.0,0.00039178,8]
[394758123,1763929868001,-500.0,0.00039178,8]
[394758124,1763929868010,-500.0,0.00039178,8]
[394758125,1763929868020,-256.87051765,0.00039178,8]
[394758126,1763929868030,-500.0,0.00039178,8]
[394758127,1763929868040,-385.41202855,0.00039178,8]
[394758128,1763929868049,-500.0,0.00039178,8]
[394758129,1763929868059,-500.0,0.00039178,8]
[394758130,1763929868069,-178.05606636,0.00039178,8]
[394758131,1763929868079,-500.0,0.00039178,8]
[394758132,1763929868088,-500.0,0.00039178,8]
[394758133,1763929868097,-661.66,0.00039178,8]
[394758134,1763929868106,-500.0,0.00039178,8]
[394758135,1763929868115,-500.0,0.00039178,8]
[394758136,1763929868125,-500.0,0.00039178,8]
[394758137,1763929868135,-553.0,0.00039178,8]
[394758138,1763929868145,-500.0,0.00039178,8]
[394758139,1763929868154,-790.75,0.00039178,8]
[394758140,1763929868163,-356.58486264,0.00039178,8]
[394758141,1763929868173,-500.0,0.00039178,8]
[394758142,1763929868182,-500.0,0.00039178,8]
[394758143,1763929868192,-500.0,0.00039178,8]
[394758144,1763929868202,-172.2933454,0.00039178,8]
[394758145,1763929868212,-500.0,0.00039178,8]
[394758146,1763929868221,-500.0,0.00039178,8]
[394758147,1763929868232,-500.0,0.00039178,8]
[394758148,1763929868241,-500.0,0.00039178,8]
[394758149,1763929868251,-636.72,0.00039178,8]
[394758150,1763929868260,-201.11121,0.00039178,120]
[394758151,1763929868269,-500.0,0.00039178,8]
[394758152,1763929868278,-576.8,0.00039178,8]
[394758153,1763929868288,-549.64,0.00039178,8]
[394758154,1763929868297,-151.0,0.00039178,120]
[394758155,1763929868307,-356.788377,0.00039178,8]
[394758156,1763929868316,-633.605245,0.00039178,8]
[394758157,1763929868325,-500.0,0.00039178,8]
[394758158,1763929868335,-1124.75,0.00039178,8]
[394758159,1763929868345,-500.0,0.00039178,8]
[394758160,1763929868354,-500.0,0.00039178,8]
[394758161,1763929868363,-500.0,0.00039178,8]
[394758162,1763929868373,-576.65,0.00039178,8]
[394758163,1763929868383,-500.0,0.00039178,8]
[394758164,1763929868392,-505.96,0.00039178,8]
[394758165,1763929868402,-460.93670017,0.00039178,8]
[394758166,1763929868412,-505.6,0.00039178,8]
[394758167,1763929868422,-500.0,0.00039178,8]
[394758168,1763929868432,-500.0,0.00039178,8]
[394758169,1763929868441,-500.0,0.00039178,8]
[394758170,1763929868450,-156.741129,0.00039178,8]
[394758171,1763929868460,-500.0,0.00039178,8]
[394758172,1763929868469,-500.0,0.00039178,8]
[394758173,1763929868479,-531.251933,0.00039178,8]
[394758174,1763929868488,-500.0,0.00039178,8]
[394758175,1763929868498,-622.8,0.00039178,8]
[394758176,1763929868507,-278.03864404,0.00039178,8]
[394758177,1763929868516,-151.0,0.00039178,120]
[394758178,1763929868525,-500.0,0.00039178,8]
[394758179,1763929868534,-500.0,0.00039178,8]
[394758180,1763929868544,-500.0,0.00039178,8]
[394758181,1763929868553,-500.0,0.00039178,8]
[394758182,1763929868562,-847.47,0.00039178,8]
[394758183,1763929868571,-238.08560881,0.00039178,8]
[394758184,1763929868580,-596.94,0.00039178,8]
[394758185,1763929868589,-500.0,0.00039178,8]
[394758186,1763929868598,-500.0,0.00039178,8]
[394758187,1763929868607,-500.0,0.00039178,8]
[394758188,1763929868617,-500.0,0.00039178,8]
[394758189,1763929868629,-500.0,0.00039178,8]
[394758190,1763929868638,-500.0,0.00039178,8]
[394758191,1763929868647,-500.0,0.00039178,8]
[394758192,1763929868656,-500.0,0.00039178,8]
[394758193,1763929868666,-500.0,0.00039178,8]
[394758194,1763929868676,-500.0,0.00039178,8]
[394758195,1763929868685,-500.0,0.00039178,8]
[394758196,1763929868694,-500.0,0.00039178,8]
[394758197,1763929868705,-500.0,0.00039178,8]
[394758198,1763929868714,-384.89776462,0.00039178,8]
[394758199,1763929868724,-500.0,0.00039178,8]
[394758200,1763929868732,-500.0,0.00039178,8]
[394758201,1763929868742,-443.61357775,0.00039178,8]
[394758202,1763929868750,-500.0,0.00039178,8]
[394758203,1763929868760,-500.0,0.00039178,8]
[394758204,1763929868769,-500.0,0.00039178,8]
[394758205,1763929868779,-500.0,0.00039178,2]
[394758206,1763929868788,-500.0,0.00039178,8]
[394758207,1763929868798,-500.0,0.00039178,8]
[394758208,1763929868807,-500.0,0.00039178,8]
[394758209,1763929868816,-500.0,0.00039178,8]
[394758210,1763929868826,-151.0,0.00039178,120]
[394758211,1763929868835,-628.98,0.00039178,8]
[394758212,1763929868845,-168.961399,0.00039178,8]
[394758213,1763929868854,-676.65,0.00039178,8]
[394758214,1763929868864,-500.0,0.00039178,8]
[394758215,1763929868874,-899.770546,0.00039178,120]
[394758216,1763929868883,-899.770546,0.00039178,120]
[394758217,1763929868893,-500.0,0.00039178,8]
[394758218,1763929868902,-899.770546,0.00039178,120]
[394758219,1763929868912,-500.0,0.00039178,8]
[394758220,1763929868921,-500.0,0.00039178,8]
[394758221,1763929868931,-899.770546,0.00039178,120]
[394758222,1763929868941,-500.0,0.00039178,8]
[394758223,1763929868951,-500.0,0.00039178,8]
[394758224,1763929868960,-523.21119564,0.00039178,8]
[394758225,1763929868970,-500.0,0.00039178,8]
[394758226,1763929868980,-564.03,0.00039178,8]
[394758227,1763929868989,-500.0,0.00039178,8]
[394758228,1763929868999,-590.89,0.00039178,8]
[394758229,1763929869009,-500.0,0.00039178,8]
[394758230,1763929869019,-500.0,0.00039178,8]
[394758231,1763929869029,-859.66,0.00039178,8]
[394758232,1763929869039,-500.0,0.00039178,8]
[394758233,1763929869049,-500.0,0.00039178,8]
[394758234,1763929869059,-500.0,0.00039178,8]
[394758235,1763929869069,-500.0,0.00039178,8]
[394758236,1763929869079,-151.0,0.00039178,28]
[394758237,1763929869089,-500.0,0.00039178,8]
[394758238,1763929869099,-500.0,0.00039178,8]
[394758239,1763929869108,-500.0,0.00039178,8]
[394758240,1763929869118,-500.0,0.00039178,8]
[394758241,1763929869127,-500.0,0.00039178,8]
[394758242,1763929869136,-509.91,0.00039178,8]
[394758243,1763929869149,-500.0,0.00039178,8]
[394758244,1763929869159,-614.28,0.00039178,8]
[394758245,1763929869292,-500.0,0.00039178,8]
[394758246,1763929869302,-500.0,0.00039178,8]
[394758247,1763929869312,-500.0,0.00039178,8]
[394758248,1763929869322,-500.0,0.00039178,8]
[394758249,1763929869332,-500.0,0.00039178,8]
[394758250,1763929869341,-500.0,0.00039178,8]
[394758251,1763929869351,-742.47,0.00039178,8]
[394758252,1763929869360,-500.0,0.00039178,8]
[394758253,1763929869370,-645.85,0.00039178,8]
[394758254,1763929869379,-500.0,0.00039178,8]
[394758255,1763929869389,-500.0,0.00039178,8]
[394758256,1763929869398,-500.0,0.00039178,8]
[394758257,1763929869408,-500.0,0.00039178,8]
[394758258,1763929869417,-1700.95,0.00039178,8]
[394758259,1763929869427,-500.0,0.00039178,8]
[394758260,1763929869436,-500.0,0.00039178,8]
[394758261,1763929869449,-203.87384525,0.00039178,8]
[394758262,1763929869458,-500.0,0.00039178,8]
[394758263,1763929869468,-562.49137386,0.00039178,8]
[394758264,1763929869477,-500.0,0.00039178,8]
[394758265,1763929869486,-500.0,0.00039178,8]
[394758266,1763929869496,-500.0,0.00039178,8]
[394758267,1763929869506,-500.0,0.00039178,8]
[394758268,1763929869515,-500.0,0.00039178,8]
[394758269,1763929869525,-500.0,0.00039178,8]
[394758270,1763929869534,-550.41,0.00039178,8]
[394758271,1763929869544,-500.0,0.00039178,8]
[394758272,1763929869554,-780.84,0.00039178,8]
[394758273,1763929869563,-500.0,0.00039178,8]
[394758274,1763929869572,-801.52,0.00039178,8]
[394758275,1763929869581,-500.0,0.00039178,8]
[394758276,1763929869590,-500.0,0.00039178,8]
[394758277,1763929869600,-876.45,0.00039178,8]
[394758278,1763929869609,-500.0,0.00039178,8]
[394758279,1763929869618,-1111.77,0.00039178,8]
[394758280,1763929869631,-500.0,0.00039178,8]
[394758281,1763929869641,-562.07,0.00039178,8]
[394758282,1763929869650,-580.02,0.00039178,8]
[394758283,1763929869659,-500.0,0.00039178,8]
[394758284,1763929869670,-1037.3,0.00039178,8]
[394758285,1763929869679,-500.0,0.00039178,8]
[394758286,1763929869691,-500.0,0.00039178,8]
[394758287,1763929869700,-647.43894811,0.00039178,8]
[394758288,1763929869710,-507.54,0.00039178,8]
[394758289,1763929869720,-500.0,0.00039178,8]
[394758290,1763929869729,-500.0,0.00039178,8]
[394758291,1763929869738,-500.0,0.00039178,8]
[394758292,1763929869748,-655.94,0.00039178,8]
[394758293,1763929869757,-500.0,0.00039178,8]
[394758294,1763929869767,-515.32,0.00039178,8]
[394758295,1763929869776,-156.51580957,0.00039178,8]
[394758296,1763929869786,-500.0,0.00039178,8]
[394758297,1763929869795,-500.0,0.00039178,8]
[394758298,1763929869805,-500.0,0.00039178,8]
[394758299,1763929869814,-500.0,0.00039178,8]
[394758300,1763929869824,-500.0,0.00039178,8]
[394758301,1763929869835,-500.0,0.00039178,8]
[394758302,1763929869844,-500.0,0.00039178,8]
[394758303,1763929869854,-500.0,0.00039178,8]
[394758304,1763929869864,-724.73,0.00039178,8]
[394758305,1763929869874,-500.0,0.00039178,8]
[394758306,1763929869883,-500.0,0.00039178,8]
[394758307,1763929869893,-603.13492164,0.00039178,8]
[394758308,1763929869902,-699.98,0.00039178,8]
[394758309,1763929869911,-500.0,0.00039178,8]
[394758310,1763929869921,-500.0,0.00039178,8]
[394758311,1763929869930,-500.0,0.00039178,8]
[394758312,1763929869941,-500.0,0.00039178,8]
[394758313,1763929869951,-704.21,0.00039178,8]
[394758314,1763929869960,-1719.41,0.00039178,8]
[394758315,1763929869970,-500.0,0.00039178,8]
[394758316,1763929869980,-500.0,0.00039178,8]
[394758317,1763929869990,-554.53108163,0.00039178,8]
[394758318,1763929870000,-500.0,0.00039178,8]
[394758319,1763929870010,-500.0,0.00039178,8]
[394758320,1763929870020,-500.0,0.00039178,8]
[394758321,1763929870030,-500.0,0.00039178,8]
[394758322,1763929870039,-500.0,0.00039178,8]
[394758323,1763929870048,-867.18,0.00039178,8]
[394758324,1763929870057,-742.38,0.00039178,8]
[394758325,1763929870066,-500.0,0.00039178,8]
[394758326,1763929870076,-500.0,0.00039178,8]
[394758327,1763929870086,-500.0,0.00039178,8]
[394758328,1763929870095,-519.83,0.00039178,8]
[394758329,1763929870104,-500.0,0.00039178,8]
[394758330,1763929870114,-500.0,0.00039178,8]
[394758331,1763929870124,-500.0,0.00039178,8]
[394758332,1763929870133,-301.24461109,0.00039178,8]